bitfinex/quotes_ETHUSD_20240819
["timestamp","ask_amount","ask_price","bid_price","bid_amount"]
[1724106554593,8.63840123,2624.4,2623.9,5.11904]
[1724106554801,8.63840123,2624.4,2624.0,0.08421541]
[1724106554802,3.81061,2624.3,2624.0,0.08421541]
[1724106555000,6.20173123,2624.3,2624.0,0.08421541]
[1724106555238,3.81061,2624.3,2624.0,0.08421541]
[1724106557644,3.81061,2624.3,2624.0,0.08164606]
[1724106557942,3.81083,2624.1,2624.0,0.08164606]
[1724106558240,3.81101,2624.0,2623.7,1.308]
[1724106558442,3.81112,2623.9,2623.5,3.81161]
[1724106558601,3.81112,2623.9,2623.5,5.11961]
[1724106561333,3.81098,2624.0,2623.5,5.11961]
[1724106561515,3.81098,2624.0,2623.6,3.81153]
[1724106561714,3.81098,2624.0,2623.7,1.308]
[1724106563153,3.81112,2623.9,2623.7,1.308]
[1724106563719,3.81112,2623.9,2623.5,5.11968]
[1724106565148,3.81083,2624.1,2623.5,5.11968]
[1724106565149,3.81099,2624.0,2623.6,0.08141865]
[1724106566335,4.816852,2624.0,2623.6,0.08141865]
[1724106567732,4.816852,2624.0,2623.6,3.89296865]
[1724106567931,3.81099,2624.0,2623.6,3.89296865]
[1724106569323,3.81099,2624.0,2623.6,0.08141865]
[1724106570458,3.81114,2623.9,2623.6,0.08141865]
[1724106570755,6.25429,2624.0,2623.6,0.08141865]
[1724106570957,6.25429,2624.0,2623.6,3.89295865]
[1724106574160,3.81085,2624.1,2623.6,3.89295865]
[1724106576228,3.81085,2624.1,2623.7,1.308]
[1724106576436,3.81085,2624.1,2623.8,0.07889178]
[1724106576640,3.81066,2624.3,2623.8,3.81124]
[1724106576930,3.81066,2624.3,2623.7,3.7109]
[1724106576931,4.43062453,2624.3,2623.9,3.88997678]
[1724106582170,4.43061453,2624.3,2623.9,0.07887678]
[1724106582975,7.62194,2624.0,2623.9,0.07887678]
[1724106583271,3.81121,2623.9,2623.4,7.52273]
[1724106588243,3.81121,2623.9,2623.5,3.81168]
[1724106592786,8.66740956,2624.2,2623.7,3.81129]
[1724106594182,6.2763,2624.2,2623.8,3.81125]
[1724106594508,8.66863459,2624.2,2623.8,3.81125]
[1724106595716,2.39233459,2624.1,2623.8,3.81125]
[1724106595883,8.66863459,2624.2,2623.7,3.81138]
[1724106596083,10.32644675,2624.2,2623.9,0.07885632]
[1724106596267,10.32644675,2624.2,2623.7,3.81138]
[1724106596268,14.13724675,2624.2,2623.8,0.07887644]
[1724106596471,10.32644675,2624.2,2624.0,0.07884643]
[1724106596671,10.32644675,2624.2,2623.9,0.07886143]
[1724106596912,1.03264468,2624.1,2623.7,3.81138]
[1724106597081,10.32644675,2624.2,2623.7,3.81138]
[1724106597292,2.39233459,2624.1,2623.7,3.81138]
[1724106598020,2.4712,2623.8,2623.3,1.308]
[1724106598313,0.628239,2623.7,2623.3,5.11995]
[1724106598483,6.28249,2623.8,2623.3,5.11995]
[1724106598677,3.81141,2623.7,2623.3,5.11995]
[1724106599020,3.81141,2623.7,2623.3,1.308]
[1724106599218,3.8118,2623.5,2623.0,6.18972]
[1724106599515,3.8118,2623.5,2623.0,7.49772]
[1724106600102,3.8118,2623.5,2623.0,11.31006]
[1724106600324,2.3937839,2623.6,2622.9,0.5]
[1724106600488,6.2058739,2623.3,2622.9,0.5]
[1724106600691,0.62058739,2623.2,2622.9,0.5]
[1724106600879,2.3937839,2623.4,2622.9,5.62056]
[1724106601078,8.5152639,2623.5,2622.9,5.62056]
[1724106601314,3.81187,2623.4,2622.9,9.43304]
[1724106601473,3.81187,2623.4,2622.9,5.62048]
[1724106602100,3.81187,2623.4,2622.9,9.43297]
[1724106602413,6.20394321,2623.6,2623.0,2.4682]
[1724106602600,6.20381321,2623.7,2623.2,3.81201]
[1724106602918,6.81143,2623.7,2623.3,3.5629]
[1724106604280,6.20352321,2623.9,2623.4,3.81173]
[1724106604589,2.39238321,2624.0,2623.5,5.1196]
[1724106604803,2.39238321,2624.1,2623.7,1.308]
[1724106605009,6.20303321,2624.3,2623.8,6.578043]
[1724106605203,6.20303321,2624.3,2624.0,1.308]
[1724106605407,6.20303321,2624.3,2623.8,7.37409]
[1724106605408,3.81065,2624.3,2623.8,7.37409]
[1724106605607,3.81062,2624.3,2623.8,7.37409]
[1724106606151,3.81062,2624.3,2623.8,9.87726]
[1724106606287,3.81062,2624.3,2623.8,6.06608]
[1724106606493,6.20214543,2624.4,2623.9,3.81101]
[1724106607004,10.01265543,2624.4,2623.9,3.81101]
[1724106607205,6.20214543,2624.4,2623.9,3.81101]
[1724106607432,10.01264543,2624.4,2623.9,3.81101]
[1724106607611,10.01263543,2624.4,2623.9,3.81101]
[1724106607998,6.20213543,2624.4,2623.9,3.81101]
[1724106608199,7.48239411,2624.4,2623.9,3.81101]
[1724106608398,11.29291411,2624.4,2623.9,3.81101]
[1724106608928,3.81083,2624.1,2623.6,7.45824]
[1724106609129,3.81083,2624.1,2623.7,3.81139]
[1724106610724,3.81083,2624.1,2623.6,3.6468]
[1724106610725,3.81083,2624.1,2623.6,7.45834]
[1724106613393,7.62238,2623.9,2623.6,1.308]
[1724106613648,3.81128,2623.8,2623.6,1.308]
[1724106613796,3.81128,2623.8,2623.4,1.308]
[1724106613797,3.81126,2623.8,2623.4,1.308]
[1724106614158,3.81141,2623.7,2623.4,1.308]
[1724106614430,3.81126,2623.8,2623.4,1.308]
[1724106616437,7.62261,2623.8,2623.4,1.308]
[1724106616742,3.45286644,2624.1,2623.5,2.4214]
[1724106616743,6.2015102,2624.1,2623.5,2.4214]
[1724106616908,3.81084,2624.1,2623.6,5.11947]
[1724106617922,3.8108,2624.2,2623.6,5.11947]
[1724106617923,3.81098,2624.0,2623.6,5.11947]
[1724106618145,3.81098,2624.0,2623.7,0.07879938]
[1724106618645,3.81098,2624.0,2623.6,5.11947]
[1724106618932,3.81098,2624.0,2623.7,0.07879938]
[1724106619335,3.81098,2624.0,2623.6,1.308]
[1724106619633,3.81112,2623.9,2623.7,0.07879938]
[1724106619858,3.81098,2624.0,2623.7,0.07879938]
[1724106620722,6.20096966,2624.3,2623.8,1.308]
[1724106620918,3.81063,2624.3,2623.9,0.07873223]
[1724106626353,6.20124861,2624.3,2623.9,0.07873223]
[1724106626739,3.81063,2624.3,2623.9,0.07873223]
[1724106627568,6.20124861,2624.3,2623.9,2.42913223]
[1724106627861,3.81063,2624.3,2623.9,2.42913223]
[1724106628436,6.20124861,2624.3,2623.9,2.42913223]
[1724106628640,3.81063,2624.3,2623.9,2.42913223]
[1724106636414,3.81063,2624.3,2623.9,6.24022223]
[1724106636698,3.81063,2624.3,2623.9,2.42913223]
[1724106639187,6.20060986,2624.6,2624.1,3.81081]
[1724106639354,8.88448651,2624.8,2624.1,3.81081]
[1724106639355,6.20028986,2624.8,2624.3,6.07907]
[1724106639676,5.07454651,2625.0,2624.4,0.07582954]
[1724106639677,3.80997,2624.7,2624.4,0.07582954]
[1724106640969,3.81011,2624.6,2624.4,0.07582954]
[1724106642771,2.3901025,2625.1,2624.7,3.80994]
[1724106642968,3.80938,2625.1,2624.8,1.38275944]
[1724106645967,3.80909,2625.3,2624.8,5.19255944]
[1724106646171,3.80896,2625.4,2625.0,1.308]
[1724106646415,3.80888,2625.5,2625.0,5.11751]
[1724106646581,3.80888,2625.5,2625.1,0.07469911]
[1724106646784,4.72877825,2625.5,2625.1,0.07469911]
[1724106647903,3.80896,2625.4,2625.1,0.07469911]
[1724106648090,3.80896,2625.4,2625.0,5.11751]
[1724106648595,3.80896,2625.4,2625.0,1.308]
[1724106648796,3.80896,2625.4,2625.1,0.07418278]
[1724106657822,3.80917,2625.3,2625.1,0.07418278]
[1724106658009,3.80923,2625.2,2625.1,0.07418278]
[1724106658213,7.61855,2625.2,2624.7,7.54564]
[1724106658565,3.80923,2625.2,2624.7,11.35547]
[1724106658864,3.80923,2625.2,2624.8,0.074146]
[1724106659065,3.80923,2625.2,2624.9,1.308]
[1724106659361,6.82147,2625.1,2625.0,0.07411601]
[1724106659584,6.82147,2625.1,2624.4,2.4277]
[1724106659585,3.80985,2624.8,2624.4,2.4277]
[1724106659714,3.80985,2624.8,2624.3,1.308]
[1724106659715,3.81003,2624.7,2624.3,1.308]
[1724106660280,3.80982,2624.8,2624.3,1.308]
[1724106660436,3.80982,2624.8,2624.3,5.11853]
[1724106660826,3.80982,2624.8,2624.3,5.11846]
[1724106661031,3.80961,2625.0,2624.5,5.11824]
[1724106661249,3.80961,2625.0,2624.6,2.4277]
[1724106661834,3.80961,2625.0,2624.6,6.23779]
[1724106662231,3.80938,2625.1,2624.6,6.23779]
[1724106662436,3.80953,2625.0,2624.6,2.4277]
[1724106663049,4.6473345,2625.2,2624.7,1.308]
[1724106663254,3.80933,2625.2,2624.7,5.11795]
[1724106663473,3.80931,2625.2,2624.7,5.11795]
[1724106663701,3.80938,2625.1,2624.7,5.11795]
[1724106664867,3.80957,2625.0,2624.7,1.308]
[1724106665013,4.571232,2625.1,2624.7,1.308]
[1724106665520,8.380682,2625.1,2624.7,1.308]
[1724106665717,4.571232,2625.1,2624.7,1.308]
[1724106666566,3.80938,2625.1,2624.7,1.308]
[1724106666771,3.80938,2625.1,2624.6,6.2378]
[1724106666772,3.8092,2625.3,2624.9,1.308]
[1724106667065,3.8092,2625.3,2625.0,2.4277]
[1724106668458,3.80888,2625.5,2625.0,2.4277]
[1724106668652,3.80895,2625.4,2625.0,6.23719]
[1724106669958,3.80895,2625.4,2625.0,2.4277]
[1724106670146,3.80914,2625.3,2625.0,2.4277]
[1724106670486,3.80914,2625.3,2624.9,1.308]
[1724106670826,3.80914,2625.3,2624.9,5.11765]
[1724106671436,3.80914,2625.3,2624.9,1.308]
[1724106671762,2.4621,2625.3,2624.5,2.4277]
[1724106672062,3.80967,2624.9,2624.5,1.308]
[1724106672237,0.930914,2625.2,2624.6,2.4277]
[1724106672436,3.80959,2625.0,2624.6,2.50160507]
[1724106672660,3.80959,2625.0,2624.6,2.4277]
[1724106672863,3.80959,2625.0,2624.7,0.07389007]
[1724106673063,4.8296604,2625.1,2624.7,0.07389007]
[1724106674433,3.80953,2625.0,2624.7,0.07389007]
[1724106675529,3.80944,2625.1,2624.7,1.38189007]
[1724106676576,7.61894,2625.1,2624.7,0.07389007]
[1724106676774,5.172512,2625.1,2624.7,0.07389007]
[1724106677100,3.80967,2624.9,2624.4,3.81029]
[1724106677601,3.80967,2624.9,2624.5,0.07400694]
[1724106677987,3.80953,2625.0,2624.5,3.88424694]
[1724106678188,3.80939,2625.1,2624.7,2.3618]
[1724106678658,3.80939,2625.1,2624.8,0.07400794]
[1724106678866,5.908459,2625.1,2624.8,0.07400794]
[1724106679077,5.908459,2625.1,2624.7,2.3618]
[1724106679402,5.908459,2625.1,2624.8,0.07405394]
[1724106679603,5.908459,2625.1,2624.7,2.3618]
[1724106679755,5.908459,2625.1,2624.9,0.07403895]
[1724106679973,1.3818459,2625.0,2624.4,6.17207]
[1724106680177,1.3818459,2625.0,2624.4,2.3618]
[1724106680178,3.80988,2624.8,2624.4,2.3618]
[1724106680429,6.15677,2624.9,2624.3,3.81045]
[1724106680721,3.80967,2624.9,2624.4,3.81031]
[1724106681726,3.80982,2624.8,2624.4,3.81031]
[1724106682018,3.80982,2624.8,2624.3,3.81053]
[1724106682395,3.80982,2624.8,2624.3,7.62106]
[1724106682918,9.0011259,2625.0,2624.4,3.81039]
[1724106683122,3.80962,2625.0,2624.6,2.4525]
[1724106683419,3.8096,2625.0,2624.6,2.4525]
[1724106683622,7.6192,2625.0,2624.6,2.4525]
[1724106684029,7.61923,2625.0,2624.6,2.4525]
[1724106685133,3.80968,2624.9,2624.6,2.4525]
[1724106686029,6.19811723,2625.1,2624.6,2.4525]
[1724106686231,3.8095,2625.1,2624.6,3.078763]
[1724106686431,7.36,2625.2,2624.9,3.80953]
[1724106686638,2.38861723,2625.4,2625.1,3.80937]
[1724106686836,2.38861723,2625.4,2625.2,2.4247]
[1724106686988,2.38861723,2625.4,2625.2,2.49522308]
[1724106687188,6.20405514,2625.5,2625.2,0.07052308]
[1724106687549,3.80923,2625.3,2624.8,3.80971]
[1724106687835,3.80923,2625.2,2624.8,3.80971]
[1724106688633,2.39524514,2625.3,2624.7,2.4247]
[1724106688842,2.39524514,2625.3,2624.7,6.23465]
[1724106688843,3.80939,2625.1,2624.7,6.23465]
[1724106689047,6.20447514,2625.3,2624.7,6.23465]
[1724106689348,3.80923,2625.3,2624.7,7.239116]
[1724106689548,3.80924,2625.2,2624.8,0.07030201]
[1724106690044,3.80924,2625.2,2624.9,0.07028702]
[1724106690229,3.80924,2625.2,2624.7,6.23465]
[1724106690432,3.80924,2625.2,2625.0,0.07027202]
[1724106690636,3.80924,2625.2,2624.7,6.23465]
[1724106690838,3.80924,2625.2,2625.1,0.07025703]
[1724106691025,3.80909,2625.3,2624.8,3.80971]
[1724106691231,3.80909,2625.3,2625.1,0.07008841]
[1724106691461,3.80909,2625.3,2624.8,3.80971]
[1724106691676,3.80909,2625.3,2625.2,0.07007342]
[1724106691885,3.80909,2625.3,2624.8,3.80971]
[1724106692088,3.80909,2625.3,2625.2,0.07007342]
[1724106692408,2.39580747,2625.4,2625.2,0.07007342]
[1724106692690,6.20467747,2625.5,2625.2,0.07007342]
[1724106692983,6.20467747,2625.5,2625.0,6.3003]
[1724106693153,3.80887,2625.5,2625.0,6.3003]
[1724106693895,1.9964237,2625.3,2625.0,6.3003]
[1724106694074,1.9964237,2625.2,2624.7,6.27305]
[1724106694276,5.8058737,2625.1,2624.7,2.4632]
[1724106694480,5.8058737,2625.1,2624.6,3.80999]
[1724106694684,1.9964237,2625.0,2624.6,3.80999]
[1724106695252,5.8059537,2625.0,2624.5,6.27344]
[1724106695579,5.8059537,2625.0,2624.4,3.81031]
[1724106695580,5.8061437,2624.9,2624.4,3.81031]
[1724106695779,1.9964237,2624.8,2624.4,3.81031]
[1724106696094,1.9964237,2624.8,2624.5,3.81021]
[1724106696391,1.9963094,2624.9,2624.5,3.81021]
[1724106696593,1.9963094,2624.9,2624.6,3.81009]
[1724106696898,1.9963094,2624.8,2624.6,3.81009]
[1724106697072,1.9963094,2624.9,2624.6,3.81009]
[1724106698098,1.99650872,2624.9,2624.6,3.81009]
[1724106700837,3.80938,2625.1,2624.6,3.81009]
[1724106701037,1.99668548,2624.9,2624.6,3.81009]
[1724106701187,1.99671579,2624.9,2624.6,3.81009]
[1724106701389,1.99671579,2624.9,2624.6,7.62012]
[1724106701594,1.99671579,2624.9,2624.6,3.81003]
[1724106701893,1.99671579,2624.9,2624.8,3.80981]
[1724106702092,6.20530895,2625.2,2624.8,3.80981]
[1724106702093,1.99671579,2625.0,2624.8,3.80981]
[1724106704506,1.99671579,2625.0,2624.9,0.0703381]
[1724106708370,1.99671579,2625.1,2625.0,3.80952]
[1724106708668,1.99671579,2625.2,2625.0,5.1858431]
[1724106708875,1.99671579,2625.3,2625.0,5.1858431]
[1724106709044,1.99671579,2625.3,2625.1,1.01299229]
[1724106709248,1.99671579,2625.3,2625.1,1.0833004]
[1724106710270,1.99665011,2625.3,2625.1,1.0833004]
[1724106711251,1.99665011,2625.3,2625.1,0.07030811]
[1724106711472,1.99665011,2625.3,2625.0,5.11552]
[1724106711774,1.99665011,2625.3,2625.2,0.07029312]
[1724106712067,1.99665011,2625.3,2625.0,5.11552]
[1724106712271,1.99665011,2625.3,2625.2,0.07029312]
[1724106712475,1.99665011,2625.3,2625.0,5.11552]
[1724106712637,1.99665011,2625.3,2625.2,0.07029312]
[1724106712834,1.99665011,2625.3,2625.1,0.892518]
[1724106712835,1.99665011,2625.3,2625.1,0.96282611]
[1724106713951,1.99665011,2625.3,2625.1,0.892518]
[1724106714154,1.99665011,2625.3,2625.2,0.07013472]
[1724106714483,1.99665011,2625.3,2625.1,0.892518]
[1724106714780,1.99619876,2625.3,2625.1,0.892518]
[1724106716336,1.99619876,2625.3,2625.2,3.0481038]
[1724106716661,1.99619876,2625.3,2625.2,3.11823852]
[1724106716841,1.99619876,2625.3,2625.2,2.51743472]
[1724106719067,1.99619876,2625.3,2625.2,0.07013472]
[1724106719383,1.99619876,2625.3,2625.0,5.11552]
[1724106719679,1.99590991,2625.3,2625.1,0.07014971]
[1724106722921,1.99566698,2625.3,2625.1,0.07014971]
[1724106723824,1.99566698,2625.3,2625.2,5.11523]
[1724106724123,1.99566698,2625.5,2625.2,5.18538005]
[1724106724480,9.35566698,2625.6,2625.2,5.18538005]
[1724106724904,9.35566698,2625.6,2625.2,5.18536005]
[1724106725237,9.35566698,2625.6,2625.3,0.89947101]
[1724106725449,9.35566698,2625.6,2625.2,5.18536005]
[1724106725581,9.35566698,2625.6,2625.3,0.07013506]
[1724106725981,9.35566698,2625.6,2625.2,5.11521]
[1724106726182,9.35566698,2625.6,2625.4,0.07012007]
[1724106726630,9.35566698,2625.6,2625.5,0.07010508]
[1724106727023,9.35566698,2625.6,2625.2,5.11521]
[1724106727340,7.36,2625.6,2625.3,0.96258906]
[1724106727541,9.35566654,2625.6,2625.3,0.96258906]
[1724106728745,1.99566654,2625.6,2625.3,0.892454]
[1724106729663,1.99566654,2625.5,2625.3,0.892454]
[1724106729835,1.99566654,2625.6,2625.3,4.701534]
[1724106730036,1.99566654,2625.6,2625.4,0.07012007]
[1724106730662,1.99566654,2625.6,2625.4,1.98388548]
[1724106730862,1.99566654,2625.9,2625.5,2.4576]
[1724106731143,1.99566654,2626.1,2625.9,3.80821]
[1724106731452,1.99566654,2626.2,2626.0,1.37580025]
[1724106731982,1.99415624,2626.2,2626.0,1.37580025]
[1724106732285,1.99415624,2626.2,2626.1,6.26552]
[1724106732575,2.39298749,2626.5,2626.1,6.33530526]
[1724106732576,1.99415624,2626.5,2626.1,6.33530526]
[1724106732811,1.99415624,2626.5,2626.2,1.306]
[1724106733138,1.99415624,2626.5,2626.3,0.0694642]
[1724106733333,3.80726,2626.6,2626.3,0.0694642]
[1724106733334,5.80141624,2626.6,2626.3,0.0694642]
[1724106733532,5.80141624,2626.6,2626.2,1.306]
[1724106733533,7.03484999,2626.6,2626.2,1.306]
[1724106733736,7.03484999,2626.6,2626.4,0.06944922]
[1724106733977,7.03484999,2626.6,2626.3,0.0694642]
[1724106734177,7.03484999,2626.6,2626.5,0.06943424]
[1724106734377,5.80141624,2626.6,2626.4,0.06944922]
[1724106734692,5.80141624,2626.6,2626.5,0.06943424]
[1724106734857,5.80141624,2626.6,2626.2,1.306]
[1724106734858,1.99415624,2626.6,2626.2,5.11376]
[1724106735040,1.99415624,2626.6,2626.3,0.0694642]
[1724106735377,1.99415624,2626.6,2626.2,5.11376]
[1724106735578,1.99415624,2626.6,2626.4,0.06944922]
[1724106735778,5.80133624,2626.7,2626.3,0.0694642]
[1724106735940,5.80137624,2626.6,2626.5,0.06943424]
[1724106736279,5.80137624,2626.6,2626.2,5.11376]
[1724106736506,3.80722,2626.6,2626.3,0.0694642]
[1724106736735,3.80722,2626.6,2626.2,6.251694]
[1724106736941,3.80722,2626.6,2626.4,0.06944922]
[1724106736942,5.79758511,2626.6,2626.4,0.06944922]
[1724106737139,3.80722,2626.6,2626.3,0.0694642]
[1724106737340,3.80722,2626.6,2626.5,0.06943424]
[1724106737541,3.80722,2626.6,2626.4,0.06944922]
[1724106737717,3.80722,2626.6,2626.5,0.06943424]
[1724106738250,3.80735,2626.5,2626.2,1.306]
[1724106738417,3.80735,2626.5,2626.2,2.063151]
[1724106740384,3.80735,2626.5,2626.1,2.4576]
[1724106740385,3.80757,2626.4,2625.8,2.3391]
[1724106740535,3.80793,2626.1,2625.8,1.306]
[1724106740859,7.61597,2626.1,2625.8,1.306]
[1724106741011,3.80808,2626.0,2625.8,1.306]
[1724106741213,3.80842,2625.8,2625.4,1.91376541]
[1724106741447,3.80842,2625.8,2625.4,1.306]
[1724106742018,3.80822,2625.9,2625.4,1.306]
[1724106742218,3.80822,2625.9,2625.4,5.11487]
[1724106742427,3.80813,2626.0,2625.4,5.11487]
[1724106742428,3.80813,2626.0,2625.6,1.306]
[1724106744275,3.80821,2625.9,2625.6,1.306]
[1724106744560,3.80813,2626.0,2625.6,1.306]
[1724106744947,3.80813,2626.0,2625.6,3.6678]
[1724106745161,3.80797,2626.1,2625.6,7.47634]
[1724106745363,3.80797,2626.1,2625.6,8.6940814]
[1724106747748,3.80808,2626.0,2625.6,4.8855414]
[1724106747920,3.80808,2626.0,2625.6,3.6678]
[1724106748319,3.80789,2626.2,2625.6,3.6678]
[1724106748320,3.80793,2626.1,2625.6,7.47637]
[1724106749335,3.80793,2626.1,2625.7,0.06911999]
[1724106750457,3.80793,2626.1,2625.7,3.87760999]
[1724106752375,7.61598,2626.1,2625.7,0.06911999]
[1724106752676,3.80807,2626.0,2625.7,0.06911999]
[1724106753252,3.80836,2625.8,2625.7,0.06911999]
[1724106753466,3.80854,2625.7,2625.3,6.26548]
[1724106753759,3.80854,2625.7,2625.4,0.06938452]
[1724106756064,3.80838,2625.8,2625.4,1.37538452]
[1724106756569,3.80838,2625.8,2625.4,8.02668997]
[1724106756762,5.79747673,2626.0,2625.5,3.80866]
[1724106757062,3.80808,2626.0,2625.5,3.80866]
[1724106757268,3.80808,2626.0,2625.6,0.06935454]
[1724106757428,7.61623,2626.0,2625.6,5.18399454]
[1724106757622,3.80808,2626.0,2625.6,5.18399454]
[1724106761453,5.79821211,2626.0,2625.6,5.18399454]
[1724106761733,3.80808,2626.0,2625.6,5.18399454]
[1724106761972,7.61623,2626.0,2625.6,3.87799454]
[1724106762189,5.79821211,2626.0,2625.6,3.87799454]
[1724106763257,5.79821211,2626.0,2625.6,0.06935454]
[1724106764044,5.79878464,2626.0,2625.6,0.06935454]
[1724106764382,3.80822,2625.9,2625.6,0.06935454]
[1724106765583,5.79892464,2625.9,2625.6,0.06935454]
[1724106766351,3.80822,2625.9,2625.6,0.06935454]
[1724106766848,5.79892464,2625.9,2625.6,0.06935454]
[1724106767703,9.60726464,2625.9,2625.6,0.06935454]
[1724106767848,2.3335,2625.7,2625.4,1.306]
[1724106768054,2.3335,2625.7,2625.5,0.06943593]
[1724106768055,3.80871,2625.6,2625.5,0.06943593]
[1724106768384,2.3335,2625.7,2624.5,2.3141]
[1724106768385,3.6395,2625.7,2624.5,2.3141]
[1724106768588,3.80966,2625.0,2624.5,6.12433]
[1724106768752,3.80962,2625.0,2624.5,6.12428]
[1724106768955,3.80962,2625.0,2624.5,9.93446]
[1724106769308,3.80962,2625.0,2624.5,9.93444]
[1724106769456,3.80962,2625.0,2624.6,3.81008]
[1724106769659,3.80962,2625.0,2624.5,2.3141]
[1724106769660,3.80967,2624.9,2624.5,2.3141]
[1724106769979,1.99217209,2625.1,2624.7,3.80993]
[1724106770150,8.13498209,2625.2,2624.7,7.61979]
[1724106770377,1.99217209,2625.3,2624.8,3.80967]
[1724106770668,11.16872,2625.6,2624.8,3.80967]
[1724106770669,9.35217209,2625.6,2625.2,5.11515]
[1724106770870,1.99217209,2625.6,2625.2,7.42925]
[1724106772303,9.60938209,2625.7,2625.2,8.553106]
[1724106772508,5.80082209,2625.6,2625.2,8.553106]
[1724106772711,1.99217209,2625.7,2625.3,3.80906]
[1724106773013,19.77,2625.8,2625.4,0.8553016]
[1724106773014,23.57842,2625.8,2625.4,0.8553016]
[1724106773311,25.56997857,2625.8,2625.4,2.1613016]
[1724106773816,25.56997857,2625.8,2625.4,0.8553016]
[1724106775793,25.57012543,2625.8,2625.4,0.8553016]
[1724106776092,5.80012543,2625.8,2625.4,0.8553016]
[1724106776292,5.80012543,2625.8,2625.5,0.53626126]
[1724106776465,5.80012543,2625.8,2625.5,0.46643716]
[1724106777708,1.99170543,2625.8,2625.5,0.46643716]
[1724106777924,5.80022543,2625.7,2625.2,6.12332]
[1724106778081,5.80022543,2625.7,2625.3,0.06985408]
[1724106778281,5.80022543,2625.7,2625.2,6.12332]
[1724106778482,5.80022543,2625.7,2625.3,0.06985408]
[1724106778691,3.80852,2625.7,2625.3,1.00024441]
[1724106779005,3.80852,2625.7,2625.4,0.06983909]
[1724106779374,5.80022543,2625.7,2625.4,0.06983909]
[1724106780995,3.80852,2625.7,2625.4,0.06983909]
[1724106781512,5.80068799,2625.7,2625.4,0.06983909]
[1724106782658,1.99216799,2625.7,2625.4,0.78916544]
[1724106782982,5.80053799,2625.8,2625.4,4.59806544]
[1724106783478,1.99216799,2625.7,2625.4,4.59806544]
[1724106784972,5.80053799,2625.8,2625.4,4.59806544]
[1724106785176,1.99216799,2625.7,2625.4,4.59806544]
[1724106785562,1.99360949,2625.7,2625.4,4.59806544]
[1724106786098,1.99360949,2625.8,2625.6,6.07755]
[1724106786303,1.99360949,2625.9,2625.7,0.06965109]
[1724106786507,1.99360949,2625.8,2625.6,6.07755]
[1724106786683,1.99360949,2625.8,2625.6,7.18409729]
[1724106788213,4.71513139,2626.1,2625.6,7.18409729]
[1724106788214,1.99360949,2625.9,2625.7,3.8085]
[1724106788561,1.99360949,2625.9,2625.8,0.06957481]
[1724106788992,1.99360949,2625.9,2625.7,7.61691]
[1724106789317,1.99360949,2625.9,2625.8,0.06950842]
[1724106789464,1.99418392,2625.9,2625.7,8.76205638]
[1724106789801,1.99418392,2625.9,2625.8,0.06950842]
[1724106790162,1.99419969,2625.9,2625.7,8.76205638]
[1724106790481,1.99419969,2625.9,2625.8,0.06950842]
[1724106790682,1.99419969,2625.9,2625.7,8.76205638]
[1724106790899,1.99419969,2626.0,2625.8,3.87786842]
[1724106791103,4.27819969,2625.9,2625.8,0.06950842]
[1724106791308,4.27819969,2625.9,2625.2,2.2689]
[1724106791309,6.09221,2625.9,2625.4,3.80892]
[1724106791603,6.09221,2625.9,2625.5,3.87834338]
[1724106791604,1.99412068,2625.8,2625.5,3.87834338]
[1724106791904,1.99412068,2625.7,2625.5,3.87834338]
[1724106792281,1.99412068,2625.8,2625.5,3.87834338]
[1724106792909,1.99412068,2625.8,2625.5,3.87827338]
[1724106793071,1.99412068,2625.8,2625.5,4.64699872]
[1724106794783,1.99432817,2625.8,2625.5,4.64699872]
[1724106795409,1.99432817,2625.8,2625.5,10.75901872]
[1724106795608,1.99432817,2625.9,2625.5,10.75901872]
[1724106795910,1.99432817,2625.8,2625.5,10.75901872]
[1724106796073,1.99432817,2625.8,2625.6,4.88454187]
[1724106796266,4.8379938,2626.1,2625.7,3.87810512]
[1724106796267,1.99432817,2625.9,2625.7,3.87810512]
[1724106796477,1.99432817,2625.9,2625.8,3.80836]
[1724106796685,1.99432817,2626.0,2625.8,3.80836]
[1724106797276,1.99432817,2626.0,2625.8,4.80813619]
[1724106798509,1.99432817,2626.1,2625.8,4.80813619]
[1724106798885,1.99432817,2626.0,2625.8,4.80813619]
[1724106800290,1.99432817,2626.1,2625.8,4.80813619]
[1724106800609,1.99432817,2626.1,2625.9,3.80814]
[1724106800936,1.99432817,2626.2,2626.0,3.80807]
[1724106801136,1.99432817,2626.2,2626.1,0.06931025]
[1724106801437,1.99432817,2626.2,2626.0,3.80807]
[1724106803508,1.99432817,2626.2,2626.1,3.80792]
[1724106803807,1.99376707,2626.3,2626.1,3.87716387]
[1724106804376,1.99376707,2626.3,2625.9,6.27571]
[1724106804577,1.99376707,2626.3,2625.8,5.11335]
[1724106804578,1.99376707,2626.1,2625.8,5.11335]
[1724106804773,1.99376707,2626.2,2625.8,5.11335]
[1724106804980,1.99376707,2626.2,2625.9,0.06920235]
[1724106805240,1.99376707,2626.2,2625.8,3.80835]
[1724106805381,1.99376707,2626.1,2625.8,3.80835]
[1724106805570,1.99376707,2626.2,2625.8,3.80835]
[1724106805908,1.99376707,2626.1,2625.8,3.80835]
[1724106806113,1.99376707,2626.2,2625.9,0.06920235]
[1724106809947,1.99376707,2626.2,2626.0,3.80796]
[1724106810086,1.99376707,2626.3,2626.1,0.06901922]
[1724106810286,1.99376707,2626.3,2626.0,7.61592]
[1724106810485,1.99376707,2626.3,2626.0,8.82347172]
[1724106810724,1.99376707,2626.3,2626.1,0.06901922]
[1724106810899,1.99376707,2626.3,2626.0,8.82347172]
[1724106810900,1.99376707,2626.3,2626.0,5.01547172]
[1724106811098,1.99376707,2626.3,2626.1,0.06901922]
[1724106811510,1.99376707,2626.3,2626.1,3.87693922]
[1724106811695,1.99376707,2626.4,2626.1,3.87693922]
[1724106811904,1.99376707,2626.4,2626.1,3.80792]
[1724106812424,5.80125707,2626.4,2626.0,5.01555172]
[1724106812622,1.99376707,2626.4,2626.1,3.80791]
[1724106812993,5.80126707,2626.4,2626.0,5.01555172]
[1724106813322,5.80126707,2626.4,2626.0,3.80804]
[1724106815100,1.99376707,2626.3,2626.0,3.80804]
[1724106817725,1.99357915,2626.3,2626.0,3.80804]